bitfinex/quotes_BTCUSD_20250904
["timestamp","ask_amount","ask_price","bid_price","bid_amount"]
[1756953437427,0.34607171,111790.0,111780.0,0.40771288]
[1756953437657,0.53416594,111800.0,111790.0,0.17890687]
[1756953437856,0.88023765,111800.0,111790.0,0.18101687]
[1756953439063,0.88645765,111800.0,111780.0,0.24768288]
[1756953439185,0.53727594,111800.0,111790.0,0.15692]
[1756953439394,0.54138594,111800.0,111790.0,0.15692]
[1756953440432,0.88745765,111800.0,111790.0,0.15692]
[1756953440859,0.88745765,111800.0,111790.0,0.15903]
[1756953441083,0.88745765,111800.0,111790.0,0.15692]
[1756953441528,0.17890687,111790.0,111780.0,0.24768288]
[1756953441739,0.53019858,111790.0,111780.0,0.40456288]
[1756953442374,0.01020336,111800.0,111780.0,0.34170887]
[1756953442713,0.53416594,111800.0,111790.0,0.33578687]
[1756953442931,0.53416594,111800.0,111790.0,0.33789687]
[1756953443731,0.53516594,111800.0,111790.0,0.33789687]
[1756953443889,0.88123765,111800.0,111790.0,0.33789687]
[1756953444061,0.70345678,111800.0,111790.0,0.33789687]
[1756953444294,0.35527507,111800.0,111790.0,0.33789687]
[1756953444606,0.88645765,111800.0,111780.0,0.33959799]
[1756953444812,0.34607171,111790.0,111780.0,0.33959799]
[1756953445023,0.52808858,111790.0,111780.0,0.40456288]
[1756953445225,0.53019858,111790.0,111780.0,0.40456288]
[1756953445654,0.53019858,111790.0,111780.0,0.24768288]
[1756953445867,0.53019858,111790.0,111780.0,0.40456288]
[1756953446286,0.53019858,111790.0,111780.0,0.24768288]
[1756953446433,0.53019858,111790.0,111780.0,0.40556288]
[1756953448070,0.53019858,111790.0,111780.0,0.06976]
[1756953448275,0.53019858,111790.0,111780.0,0.22664]
[1756953448276,0.87627029,111790.0,111780.0,0.22664]
[1756953448692,0.87627029,111790.0,111780.0,0.06976]
[1756953448906,0.87627029,111790.0,111780.0,0.22664]
[1756953449898,0.53019858,111790.0,111780.0,0.22564]
[1756953450104,0.35229171,111790.0,111780.0,0.40667288]
[1756953450306,0.53119858,111790.0,111780.0,0.40667288]
[1756953450980,0.18612687,111790.0,111780.0,0.40667288]
[1756953451209,0.53219858,111790.0,111780.0,0.40667288]
[1756953451634,0.52697858,111790.0,111780.0,0.40667288]
[1756953452170,0.52908858,111790.0,111780.0,0.40667288]
[1756953452375,0.53219858,111790.0,111780.0,0.40667288]
[1756953452934,0.18612687,111790.0,111780.0,0.40667288]
[1756953453130,0.53219858,111790.0,111780.0,0.40667288]
[1756953453331,0.53219858,111790.0,111780.0,0.24979288]
[1756953453577,0.53219858,111790.0,111780.0,0.40663288]
[1756953455093,0.52908858,111790.0,111780.0,0.40663288]
[1756953455210,0.002,111790.0,111780.0,0.40663288]
[1756953455408,0.002,111790.0,111780.0,0.40958288]
[1756953455615,0.002,111790.0,111780.0,0.84757058]
[1756953456308,0.002,111790.0,111780.0,0.50149887]
[1756953456709,0.001,111790.0,111780.0,0.84757058]
[1756953457283,0.00014116,111800.0,111780.0,0.84757058]
[1756953457539,0.00014116,111800.0,111790.0,0.1811432]
[1756953457663,0.00014116,111800.0,111790.0,0.1840932]
[1756953457873,0.00014116,111800.0,111790.0,0.18396687]
[1756953458475,0.00114116,111800.0,111790.0,0.18396687]
[1756953458924,0.00114116,111800.0,111790.0,0.27588286]
[1756953459485,0.00214116,111800.0,111790.0,0.27588286]
[1756953459732,0.00014116,111800.0,111790.0,0.43268286]
[1756953459899,0.34621287,111800.0,111790.0,0.42973286]
[1756953460101,0.34721287,111800.0,111790.0,0.43268286]
[1756953460305,0.00214116,111800.0,111790.0,0.43268286]
[1756953462165,0.00424116,111800.0,111790.0,0.27293286]
[1756953462376,0.00733116,111800.0,111790.0,0.42973286]
[1756953462586,0.00214116,111800.0,111790.0,0.42973286]
[1756953463988,0.00214116,111800.0,111790.0,0.42762286]
[1756953463989,0.46867886,111800.0,111790.0,0.42762286]
[1756953464193,0.64756973,111800.0,111790.0,0.33570687]
[1756953465552,0.17890687,111790.0,111780.0,0.24768288]
[1756953465740,0.17890687,111790.0,111780.0,0.22552]
[1756953465741,0.64334457,111790.0,111780.0,0.22552]
[1756953465938,0.64544457,111790.0,111780.0,0.22552]
[1756953466378,0.64544457,111790.0,111780.0,0.40444288]
[1756953466562,0.64544457,111790.0,111780.0,0.06876]
[1756953466745,0.64544457,111790.0,111780.0,0.22552]
[1756953466940,0.64544457,111790.0,111780.0,0.06876]
[1756953467181,0.18409687,111790.0,111780.0,0.22652]
[1756953467386,0.64544457,111790.0,111780.0,0.22652]
[1756953471365,0.18409687,111790.0,111780.0,0.22652]
[1756953471617,0.64544457,111790.0,111780.0,0.22652]
[1756953472114,0.18409687,111790.0,111780.0,0.22652]
[1756953472329,0.64544457,111790.0,111780.0,0.22652]
[1756953475995,0.4665377,111790.0,111780.0,0.40540288]
[1756953476171,0.64544457,111790.0,111780.0,0.40540288]
[1756953476524,0.64544457,111790.0,111780.0,0.24868288]
[1756953476932,0.64544457,111790.0,111780.0,0.40540288]
[1756953477374,0.64544457,111790.0,111780.0,0.40750288]
[1756953477588,0.64544457,111790.0,111780.0,0.40540288]
[1756953479235,0.64544457,111790.0,111780.0,0.24868288]
[1756953479441,0.64544457,111790.0,111780.0,0.40536288]
[1756953479901,0.64544457,111790.0,111780.0,0.24868288]
[1756953480110,0.64544457,111790.0,111780.0,0.40536288]
[1756953480461,0.64544457,111790.0,111780.0,0.22644]
[1756953480681,0.64544457,111790.0,111780.0,0.06976]
[1756953480854,0.64544457,111790.0,111780.0,0.22644]
[1756953481072,0.18409687,111790.0,111780.0,0.22644]
[1756953481278,0.64544457,111790.0,111780.0,0.22644]
[1756953484249,0.18409687,111790.0,111780.0,0.40746288]
[1756953487235,0.18409687,111790.0,111780.0,0.22644]
[1756953488590,0.18409687,111790.0,111780.0,0.2264]
[1756953489627,0.18409687,111790.0,111780.0,0.22836]
[1756953491028,0.18409687,111790.0,111780.0,0.40728288]
[1756953492395,0.18409687,111790.0,111780.0,0.40532288]
[1756953492598,0.18409687,111790.0,111780.0,0.22836]
[1756953492862,0.64544457,111790.0,111780.0,0.2264]
[1756953493254,0.18409687,111790.0,111780.0,0.2264]
[1756953493822,0.64544457,111790.0,111780.0,0.22636]
[1756953494025,0.64544457,111790.0,111780.0,0.22632]
[1756953495095,0.75829938,111790.0,111780.0,0.22632]
[1756953495538,0.75829938,111790.0,111780.0,0.15756]
[1756953496809,0.75829938,111790.0,111780.0,0.15656]
[1756953497008,0.17893889,111770.0,111760.0,0.25666166]
[1756953497211,0.17893889,111770.0,111760.0,0.41518166]
[1756953497438,0.18205662,111780.0,111760.0,0.48872797]
[1756953497573,0.64340432,111780.0,111760.0,0.48872797]
[1756953497769,0.18205662,111780.0,111760.0,0.49167797]
[1756953498481,0.18205662,111780.0,111760.0,0.49367797]
[1756953498864,0.18205662,111780.0,111760.0,0.49267797]
[1756953499926,0.17893889,111770.0,111760.0,0.41618166]
[1756953500329,0.17893889,111770.0,111760.0,0.41718166]
[1756953500477,0.17893889,111770.0,111760.0,0.41618166]
[1756953501058,0.18806367,111770.0,111760.0,0.41518166]
[1756953501570,0.18806367,111770.0,111760.0,0.41718166]
[1756953501775,0.18806367,111770.0,111760.0,0.41818166]
[1756953502174,0.18806367,111770.0,111760.0,0.42113166]
[1756953502868,0.00912478,111770.0,111760.0,0.42113166]
[1756953503301,0.64340432,111780.0,111760.0,0.42113166]
[1756953503624,0.64028432,111780.0,111760.0,0.42113166]
[1756953504247,0.64340432,111780.0,111760.0,0.41813166]
[1756953504445,0.65224816,111780.0,111760.0,0.41813166]
[1756953504869,0.65224816,111780.0,111760.0,0.41913166]
[1756953505557,0.65224816,111780.0,111770.0,0.33541889]
[1756953505779,0.19090046,111780.0,111770.0,0.33737889]
[1756953506126,0.19299046,111780.0,111770.0,0.33737889]
[1756953506337,0.19299046,111780.0,111770.0,0.15844]
[1756953506795,0.18778046,111780.0,111770.0,0.33737889]
[1756953507225,0.19299046,111780.0,111770.0,0.33737889]
[1756953507639,0.19299046,111780.0,111770.0,0.15944]
[1756953508593,0.19299046,111780.0,111770.0,0.33837889]
[1756953510344,0.19299046,111780.0,111770.0,0.15944]
[1756953511090,0.19299046,111780.0,111770.0,0.15748]
[1756953515390,0.19299046,111780.0,111770.0,0.15944]
[1756953516541,0.19299046,111780.0,111770.0,0.15748]
[1756953517750,0.19299046,111780.0,111770.0,0.15944]
[1756953518156,0.19299046,111780.0,111770.0,0.15748]
[1756953518356,0.19297672,111780.0,111770.0,0.33837889]
[1756953519430,0.19297672,111780.0,111770.0,0.15748]
[1756953520694,0.19297672,111780.0,111770.0,0.15948]
[1756953520847,0.19297672,111780.0,111770.0,0.15748]
[1756953521642,0.18776672,111780.0,111770.0,0.33841889]
[1756953522070,0.19083672,111780.0,111770.0,0.33841889]
[1756953522723,0.19092221,111790.0,111770.0,0.34136889]
[1756953523560,0.53707151,111790.0,111770.0,0.68751819]
[1756953523969,0.19092221,111790.0,111770.0,0.68751819]
[1756953524148,0.53807151,111790.0,111770.0,0.68751819]
[1756953524375,0.53807151,111790.0,111770.0,0.34036889]
[1756953524529,0.53807151,111790.0,111770.0,0.68356819]
[1756953524745,0.53907151,111790.0,111770.0,0.68651819]
[1756953526092,0.53907151,111790.0,111780.0,0.17892288]
[1756953526298,0.002,111790.0,111780.0,0.18092288]
[1756953526464,0.002,111790.0,111780.0,0.24968288]
[1756953526859,0.001,111790.0,111780.0,0.24968288]
[1756953527311,0.002,111790.0,111780.0,0.24968288]
[1756953527482,0.001,111790.0,111780.0,0.24968288]
[1756953527953,0.002,111790.0,111780.0,0.24968288]
[1756953529655,0.18090687,111790.0,111780.0,0.24968288]
[1756953530408,0.18613687,111790.0,111780.0,0.24968288]
[1756953530611,0.18613687,111790.0,111780.0,0.24768288]
[1756953531031,0.18613687,111790.0,111780.0,0.24968288]
[1756953534948,0.53228617,111790.0,111780.0,0.24968288]
[1756953535558,0.18613687,111790.0,111780.0,0.24768288]
[1756953536478,0.18613687,111790.0,111780.0,0.24968288]
[1756953536691,0.18090687,111790.0,111780.0,0.24968288]
[1756953537671,0.002,111790.0,111780.0,0.24968288]
[1756953538097,0.002,111790.0,111780.0,0.59878218]
[1756953540257,0.002,111790.0,111780.0,0.25263288]
[1756953540472,0.002,111790.0,111780.0,0.69069817]
[1756953541688,0.001,111790.0,111780.0,0.69069817]
[1756953541902,0.00014116,111800.0,111790.0,0.17890687]
[1756953542120,0.00014116,111800.0,111790.0,0.3373032]
[1756953542258,0.00321116,111800.0,111790.0,0.33706687]
[1756953544334,0.00114116,111800.0,111790.0,0.33706687]
[1756953544755,0.00421116,111800.0,111790.0,0.33706687]
[1756953544976,0.18626203,111800.0,111790.0,0.17890687]
[1756953545189,0.53241133,111800.0,111790.0,0.15612]
[1756953545619,0.17890687,111790.0,111780.0,0.06876]
[1756953545835,0.17890687,111790.0,111780.0,0.22484]
[1756953545836,0.52812617,111790.0,111780.0,0.22484]
[1756953546013,0.53028617,111790.0,111780.0,0.22484]
[1756953546244,0.87643547,111790.0,111780.0,0.22484]
[1756953546562,0.53028617,111790.0,111780.0,0.22484]
[1756953548382,0.53028617,111790.0,111780.0,0.22584]
[1756953548512,0.87643547,111790.0,111780.0,0.22584]
[1756953548752,0.53028617,111790.0,111780.0,0.22584]
[1756953549656,0.53028617,111790.0,111780.0,0.22484]
[1756953550033,0.53228617,111790.0,111780.0,0.22484]
[1756953550243,0.53228617,111790.0,111780.0,0.06876]
[1756953550680,0.53228617,111790.0,111780.0,0.2248]
[1756953551076,0.53228617,111790.0,111780.0,0.06876]
[1756953551280,0.53228617,111790.0,111780.0,0.2248]
[1756953551491,0.53228617,111790.0,111780.0,0.06876]
[1756953551692,0.53228617,111790.0,111780.0,0.2248]
[1756953553136,0.17893889,111770.0,111760.0,0.25666166]
[1756953553345,0.53001819,111770.0,111760.0,0.41270166]
[1756953553553,0.53001819,111770.0,111760.0,0.25666166]
[1756953553683,0.53001819,111770.0,111760.0,0.41482166]
[1756953553889,0.53905117,111770.0,111760.0,0.41482166]
[1756953554798,0.53905117,111770.0,111760.0,0.41682166]
[1756953554957,0.53905117,111770.0,111760.0,0.26182166]
[1756953555159,0.53905117,111770.0,111760.0,0.41782166]
[1756953555875,0.53905117,111770.0,111760.0,0.40887392]
[1756953556787,0.53905117,111770.0,111760.0,0.25287392]
[1756953556987,0.53905117,111770.0,111760.0,0.40887392]
[1756953557186,0.53905117,111770.0,111760.0,0.40883392]
[1756953557761,0.53412117,111770.0,111760.0,0.40883392]
[1756953558003,0.53412117,111770.0,111760.0,0.41178392]
[1756953558244,0.18797187,111770.0,111760.0,0.41178392]
[1756953558468,0.19290187,111770.0,111760.0,0.40883392]
[1756953558602,0.53905117,111770.0,111760.0,0.40883392]
[1756953559632,0.53905117,111770.0,111760.0,0.25287392]
[1756953559831,0.53905117,111770.0,111760.0,0.40883392]
[1756953560834,0.53905117,111770.0,111760.0,0.25287392]
[1756953561056,0.53905117,111770.0,111760.0,0.22768]
[1756953561457,0.53905117,111770.0,111760.0,0.07076]
[1756953561651,0.90613929,111770.0,111760.0,0.22468]
[1756953561857,0.55998999,111770.0,111760.0,0.22468]
[1756953562107,0.55998999,111770.0,111760.0,0.22568]
[1756953562320,0.55998999,111770.0,111760.0,0.22468]
[1756953562979,0.56198999,111770.0,111760.0,0.22468]
[1756953564710,0.56398999,111770.0,111760.0,0.22468]
[1756953564911,0.56198999,111770.0,111760.0,0.22468]
[1756953565317,0.65590598,111770.0,111730.0,0.18790658]
[1756953565518,0.52512021,111750.0,111740.0,0.22468]
[1756953565723,0.53005021,111750.0,111740.0,0.22468]
[1756953565925,0.53005021,111750.0,111740.0,0.0688]
[1756953566125,0.53005021,111750.0,111740.0,0.22468]
[1756953566691,0.53005021,111750.0,111740.0,0.22482122]
[1756953566898,0.18390091,111750.0,111740.0,0.22482122]
[1756953567125,0.17897091,111750.0,111740.0,0.22698122]
[1756953567337,0.52512021,111750.0,111740.0,0.22698122]
[1756953567976,0.52712021,111750.0,111740.0,0.22698122]
[1756953568197,0.53005021,111750.0,111740.0,0.22698122]
[1756953568456,0.17897091,111750.0,111740.0,0.22698122]
[1756953568677,0.52512021,111750.0,111740.0,0.22698122]
[1756953568889,0.52512021,111750.0,111740.0,0.22798122]
[1756953569538,0.17897091,111750.0,111740.0,0.40991815]
[1756953569794,0.17896856,111760.0,111740.0,0.75606745]
[1756953570205,0.18189856,111760.0,111740.0,0.75606745]
[1756953570423,0.17896856,111760.0,111740.0,0.75606745]
[1756953570638,0.52511786,111760.0,111740.0,0.75606745]
[1756953571043,0.52511786,111760.0,111740.0,0.75506745]
[1756953571245,0.52611786,111760.0,111740.0,0.75506745]
[1756953571604,0.18096856,111760.0,111740.0,0.75506745]
[1756953571836,0.52711786,111760.0,111740.0,0.75506745]
[1756953572398,0.53004786,111760.0,111740.0,0.75506745]
[1756953572801,0.52711786,111760.0,111740.0,0.75506745]
[1756953573362,0.52711786,111760.0,111750.0,0.53030734]
[1756953573363,0.002,111760.0,111750.0,0.53030734]
[1756953573615,0.002,111760.0,111750.0,0.53023021]
[1756953574171,0.002,111760.0,111750.0,0.6221462]
[1756953574395,0.001,111760.0,111750.0,0.6221462]
[1756953574598,0.53696218,111780.0,111760.0,0.1789549]
[1756953574799,0.87696218,111780.0,111770.0,0.15584]
[1756953575002,0.87896218,111780.0,111770.0,0.15584]
[1756953575383,0.1789549,111760.0,111750.0,0.09191599]
[1756953575592,0.17897091,111750.0,111740.0,0.06894122]
[1756953575805,0.52512021,111750.0,111740.0,0.22694122]
[1756953576265,0.17897091,111750.0,111740.0,0.22694122]
[1756953576689,0.17897091,111750.0,111740.0,0.40592815]
[1756953576897,0.5280342,111760.0,111740.0,0.40592815]
[1756953577096,0.5280342,111760.0,111740.0,0.40887815]
[1756953577319,0.3490793,111760.0,111750.0,0.17897091]
[1756953577531,0.3490793,111760.0,111750.0,0.18408091]
[1756953577532,0.1789549,111760.0,111750.0,0.18408091]
[1756953577778,0.1789549,111760.0,111750.0,0.18113091]
[1756953577920,0.1848849,111760.0,111740.0,0.68599344]
[1756953578126,0.18190091,111750.0,111740.0,0.33984414]
[1756953578346,0.17897091,111750.0,111740.0,0.49784414]
[1756953579514,0.18110091,111750.0,111740.0,0.49784414]
[1756953579719,0.18110091,111750.0,111740.0,0.49884414]
[1756953579930,0.17897091,111750.0,111740.0,0.49884414]
[1756953580344,0.18110091,111750.0,111740.0,0.49884414]
[1756953580554,0.18110091,111750.0,111740.0,0.16401721]
[1756953580776,0.18110091,111750.0,111740.0,0.49892414]
[1756953580979,0.18403091,111750.0,111740.0,0.49892414]
[1756953581190,0.18403091,111750.0,111740.0,0.16185721]
[1756953581392,0.18403091,111750.0,111740.0,0.31773721]
[1756953582035,0.18403091,111750.0,111740.0,0.06994122]
[1756953582267,0.53018021,111750.0,111740.0,0.06994122]
[1756953582688,0.53018021,111750.0,111740.0,0.22654122]
[1756953582896,0.18403091,111750.0,111740.0,0.22654122]
[1756953583103,0.53018021,111750.0,111740.0,0.22654122]
[1756953583522,0.64695565,111750.0,111740.0,0.22654122]
[1756953583730,0.18503091,111750.0,111740.0,0.06994122]
[1756953583944,0.18403091,111750.0,111740.0,0.22654122]
[1756953584157,0.64595565,111750.0,111740.0,0.22554122]
[1756953584338,0.64695565,111750.0,111740.0,0.22554122]
[1756953584745,0.18603091,111750.0,111740.0,0.22554122]
[1756953585242,0.18503091,111750.0,111740.0,0.22757122]
[1756953585686,0.18603091,111750.0,111740.0,0.22757122]
[1756953586131,0.18603091,111750.0,111740.0,0.22554122]
[1756953588104,0.64795565,111750.0,111740.0,0.22554122]
[1756953588322,0.64795565,111750.0,111740.0,0.22530122]
[1756953589182,0.66889447,111750.0,111740.0,0.22526122]
[1756953589394,0.66889447,111750.0,111740.0,0.00014122]
[1756953589595,0.66889447,111750.0,111740.0,0.15642122]
[1756953591416,0.20190973,111750.0,111740.0,0.15845122]
[1756953591627,0.002,111750.0,111740.0,0.80231289]
[1756953592023,0.002,111750.0,111740.0,0.34038815]
[1756953592357,0.002,111750.0,111740.0,0.89422888]
[1756953593026,0.002,111750.0,111740.0,0.43230414]
[1756953593227,0.002,111750.0,111740.0,0.89422888]
[1756953596734,0.002,111750.0,111740.0,1.23422888]
[1756953598004,0.002,111750.0,111740.0,1.24307006]
[1756953598420,0.002,111750.0,111740.0,1.32351779]
[1756953599280,0.001,111750.0,111740.0,1.32351779]
[1756953599691,0.001,111750.0,111740.0,1.32451779]
[1756953600118,0.001,111750.0,111740.0,1.32351779]
[1756953600339,0.18183751,111790.0,111780.0,0.17892288]
[1756953600567,0.18396751,111790.0,111780.0,0.33504288]
[1756953601680,0.18696751,111790.0,111780.0,0.33504288]
[1756953602106,0.19589037,111790.0,111780.0,0.33504288]
[1756953602345,0.19889037,111790.0,111780.0,0.33504288]
[1756953602593,0.01998286,111790.0,111780.0,0.33504288]
[1756953603234,0.01106,111790.0,111780.0,0.33504288]
[1756953603470,0.00813,111790.0,111780.0,0.33707288]
[1756953603702,0.01106,111790.0,111780.0,0.33707288]
[1756953604569,0.00806,111790.0,111780.0,0.33707288]
[1756953604713,0.00506,111790.0,111780.0,0.33707288]
[1756953604925,0.00213,111790.0,111780.0,0.33707288]
[1756953605247,0.00413,111790.0,111780.0,0.33707288]
[1756953605463,0.00706,111790.0,111780.0,0.33707288]
[1756953605886,0.002,111790.0,111780.0,0.33707288]
[1756953606025,0.00413,111790.0,111780.0,0.33707288]
[1756953606236,0.00706,111790.0,111780.0,0.33707288]
[1756953606625,0.002,111790.0,111780.0,0.33707288]
[1756953606820,0.002,111790.0,111780.0,0.79899762]
[1756953607372,0.002,111790.0,111780.0,0.80194762]
[1756953607853,0.002,111790.0,111780.0,0.89386361]
[1756953609014,0.002,111790.0,111780.0,0.43193887]
[1756953609215,0.002,111790.0,111780.0,0.89386361]
[1756953609633,0.002,111790.0,111780.0,0.89091361]
[1756953610732,0.002,111790.0,111780.0,0.27286887]
[1756953611080,0.00724,111790.0,111780.0,0.42870887]
[1756953611540,1e-08,111790.0,111780.0,1.30712992]
[1756953611753,1e-08,111790.0,111780.0,0.97565291]
[1756953611960,1e-08,111790.0,111780.0,1.23358361]
[1756953612106,1e-08,111790.0,111780.0,1.31403134]
[1756953612302,1e-08,111790.0,111780.0,1.23063361]
[1756953612505,0.00324,111800.0,111790.0,0.17890687]
[1756953612728,0.00524,111800.0,111790.0,0.34172286]
[1756953612948,0.00047082,111820.0,111810.0,0.17887487]
[1756953613170,0.00247082,111820.0,111810.0,0.33471487]
[1756953613370,0.00571082,111820.0,111810.0,0.33471487]
[1756953614216,0.00571082,111820.0,111810.0,0.17887487]
[1756953614367,0.00571082,111820.0,111810.0,0.1811108]
[1756953614579,0.00571082,111820.0,111810.0,0.33471487]
[1756953614916,0.00571082,111820.0,111810.0,0.17887487]
[1756953615126,0.1845697,111820.0,111810.0,0.33471487]
[1756953615390,0.1855697,111820.0,111810.0,0.33471487]
[1756953615553,0.00671082,111820.0,111810.0,0.33471487]
[1756953615916,0.1865697,111820.0,111800.0,0.17887722]
[1756953616207,0.1833297,111820.0,111810.0,0.15584]
[1756953616629,0.1833297,111820.0,111810.0,0.33471487]
[1756953616817,0.1865697,111820.0,111810.0,0.17887487]
[1756953616955,0.1865697,111820.0,111810.0,0.33471487]
[1756953617352,0.00671082,111820.0,111810.0,0.33471487]
[1756953617548,0.00571082,111820.0,111810.0,0.33471487]
[1756953617759,0.00771082,111820.0,111810.0,0.33471487]
[1756953617957,0.00871082,111820.0,111810.0,0.33471487]
[1756953618417,0.00571082,111820.0,111810.0,0.33471487]
[1756953618845,0.00047082,111820.0,111810.0,0.27588086]
[1756953619086,0.00671082,111820.0,111810.0,0.42659086]
[1756953619290,0.00547082,111820.0,111810.0,0.42873086]
[1756953619467,0.00871082,111820.0,111810.0,0.42873086]
[1756953619694,0.00347082,111820.0,111810.0,0.42873086]
[1756953620474,0.00147082,111820.0,111810.0,0.42873086]
[1756953620784,0.00147082,111820.0,111810.0,0.8936056]
[1756953621007,0.00047082,111820.0,111810.0,0.8936056]
[1756953621425,0.00047082,111820.0,111810.0,0.8946056]
[1756953626695,0.00047082,111820.0,111810.0,0.8916556]
[1756953626930,0.00047082,111820.0,111810.0,0.7358556]
[1756953627118,0.00047082,111820.0,111810.0,0.8916556]
[1756953628136,0.00247082,111820.0,111810.0,0.7358556]
[1756953628341,0.00571082,111820.0,111810.0,0.27179086]
[1756953628544,0.00571082,111820.0,111810.0,0.42759086]
[1756953629628,0.00047082,111820.0,111810.0,0.8916556]
[1756953629845,0.00571082,111820.0,111810.0,0.42759086]
[1756953631093,0.00247082,111820.0,111810.0,0.42973086]
[1756953631522,0.00571082,111820.0,111810.0,0.42973086]
[1756953631903,0.00571082,111820.0,111810.0,0.42969086]
[1756953632676,0.00047082,111820.0,111810.0,0.42969086]
[1756953632879,0.00247082,111820.0,111810.0,0.42969086]
[1756953634105,0.00047082,111820.0,111810.0,0.8916156]
[1756953637993,0.00047082,111820.0,111810.0,0.42969086]
[1756953638230,0.00047082,111820.0,111810.0,0.8916156]
[1756953639937,0.00047082,111820.0,111810.0,0.42969086]
[1756953640248,0.00047082,111820.0,111810.0,0.8916156]
[1756953642569,0.00047082,111820.0,111810.0,0.42969086]
[1756953642823,0.00047082,111820.0,111810.0,0.8916156]
[1756953644011,0.00047082,111820.0,111810.0,0.8945456]
[1756953645342,0.00047082,111820.0,111810.0,0.43262086]
[1756953645534,0.00047082,111820.0,111810.0,1.124199]
[1756953645951,0.00047082,111820.0,111810.0,0.77840993]
[1756953646331,0.00047082,111820.0,111810.0,1.124199]
[1756953650932,0.00047082,111820.0,111810.0,1.54464673]
[1756953652138,0.00047082,111820.0,111810.0,1.8904358]
[1756953652358,1e-08,111820.0,111810.0,2.34042963]
[1756953652558,1e-08,111820.0,111810.0,2.25998807]
[1756953652803,1e-08,111820.0,111810.0,2.37245645]
[1756953653040,1e-08,111820.0,111810.0,2.39339527]
[1756953653258,1e-08,111820.0,111810.0,2.39239527]
[1756953653846,1e-08,111820.0,111810.0,2.39539527]
[1756953654084,1e-08,111820.0,111810.0,2.39339527]
[1756953654292,1e-08,111820.0,111810.0,2.39335527]
[1756953654602,1e-08,111820.0,111810.0,2.39535527]
[1756953655217,1e-08,111820.0,111810.0,2.39435527]
[1756953656251,1e-08,111820.0,111810.0,2.39735527]
[1756953657181,1e-08,111830.0,111820.0,1.28716491]
[1756953657404,1e-08,111830.0,111820.0,1.71590356]
[1756953657632,1e-08,111830.0,111820.0,1.02938542]
[1756953657881,1e-08,111830.0,111820.0,1.42938542]
[1756953659022,1e-08,111830.0,111820.0,1.27366542]
[1756953659237,1e-08,111830.0,111820.0,1.43034542]
[1756953660111,1e-08,111830.0,111820.0,1.43234542]
[1756953660567,1e-08,111830.0,111820.0,1.47356768]
[1756953661713,1e-08,111830.0,111820.0,1.12777861]
[1756953661954,1e-08,111830.0,111820.0,1.09560665]
[1756953662174,1e-08,111830.0,111820.0,1.36118502]
[1756953662389,1e-08,111830.0,111820.0,1.44138504]
[1756953662568,1e-08,111830.0,111820.0,1.36118502]
[1756953663112,1e-08,111830.0,111820.0,1.85118502]
[1756953663332,1e-08,111830.0,111820.0,2.27726768]
[1756953663814,1e-08,111830.0,111820.0,2.27626768]
[1756953664056,1e-08,111830.0,111820.0,2.27426768]
[1756953664274,1e-08,111830.0,111820.0,2.11858768]
[1756953664469,1e-08,111830.0,111820.0,2.27626768]
[1756953664946,1e-08,111830.0,111820.0,2.12058768]
[1756953665140,1e-08,111830.0,111820.0,2.27626768]
[1756953665272,1e-08,111830.0,111820.0,2.27726768]
[1756953665494,1e-08,111830.0,111820.0,2.27526768]
[1756953665902,1e-08,111830.0,111820.0,2.27726768]
[1756953666379,1e-08,111830.0,111820.0,2.28026768]
[1756953667578,1e-08,111830.0,111820.0,2.97184582]
[1756953667983,1e-08,111830.0,111820.0,3.06629582]
[1756953669899,1e-08,111830.0,111820.0,2.91061582]
[1756953670123,1e-08,111830.0,111820.0,2.37467768]
[1756953670326,1e-08,111830.0,111820.0,2.27729768]
[1756953670645,1e-08,111830.0,111820.0,2.28024768]
[1756953670848,0.00195001,111830.0,111820.0,1.76071886]
[1756953671123,0.00508001,111830.0,111820.0,1.36843979]
[1756953671331,0.00508001,111830.0,111820.0,1.33617533]
[1756953671536,0.00508001,111830.0,111820.0,1.69711415]
[1756953671944,0.00508001,111830.0,111820.0,1.74711415]
[1756953672139,0.00508001,111830.0,111820.0,2.43869229]
[1756953672548,0.00508001,111830.0,111820.0,2.15293409]
[1756953672725,0.00508001,111830.0,111820.0,2.35857409]
[1756953673767,0.00508001,111830.0,111820.0,2.35853409]
[1756953674001,0.00508001,111830.0,111820.0,2.28759527]
[1756953674889,0.00508001,111830.0,111820.0,2.31446677]
[1756953675636,0.00508001,111830.0,111820.0,2.42684943]
[1756953675839,0.00508001,111830.0,111820.0,2.42893943]
[1756953676131,0.00508001,111830.0,111820.0,2.42684943]
[1756953676970,0.00508001,111830.0,111820.0,2.27124943]
[1756953677148,0.00508001,111830.0,111820.0,2.42684943]
[1756953677326,0.00508001,111830.0,111820.0,2.47684943]
[1756953677853,0.00508001,111830.0,111820.0,2.69164943]
[1756953678058,0.00508001,111830.0,111820.0,2.64164943]
[1756953678264,0.00508001,111830.0,111820.0,2.69164943]
[1756953678472,0.00508001,111830.0,111820.0,2.64164943]
[1756953680112,0.00508001,111830.0,111820.0,2.69164943]
[1756953680687,0.00508001,111830.0,111820.0,2.69373943]
[1756953681366,0.00508001,111830.0,111820.0,2.64373943]
[1756953681575,0.00508001,111830.0,111820.0,2.69373943]
[1756953681772,0.00508001,111830.0,111820.0,2.64373943]
[1756953682998,0.00508001,111830.0,111820.0,0.74077129]
[1756953683218,0.00508001,111830.0,111820.0,1.24212036]
[1756953683645,0.00508001,111830.0,111820.0,1.1297377]
[1756953683886,0.00508001,111830.0,111820.0,1.4697377]
[1756953686554,0.00508001,111830.0,111820.0,0.58716637]
[1756953686761,0.55351196,111830.0,111820.0,0.07472]
[1756953686972,0.55351196,111830.0,111820.0,0.23028]
[1756953687613,0.37466908,111830.0,111820.0,0.40613888]
[1756953687823,0.55351196,111830.0,111820.0,0.40313888]
[1756953688029,0.55351196,111830.0,111820.0,0.40413888]
[1756953688382,0.55551196,111830.0,111820.0,0.40413888]
[1756953688817,0.56446661,111830.0,111820.0,0.40413888]
[1756953689051,0.56446661,111830.0,111820.0,0.40313888]
[1756953689305,0.55551196,111830.0,111820.0,0.22428]
[1756953689530,0.55651196,111830.0,111820.0,0.22428]
[1756953690098,0.55651196,111830.0,111820.0,0.40313888]
[1756953690424,0.55651196,111830.0,111820.0,0.24757888]
[1756953690620,0.55651196,111830.0,111820.0,0.40313888]
[1756953692917,0.5653035,111830.0,111820.0,0.40313888]
[1756953696353,0.21951443,111830.0,111820.0,0.40313888]
[1756953696579,0.5653035,111830.0,111820.0,0.40313888]
[1756953701735,0.35386908,111830.0,111820.0,0.40313888]
[1756953702480,0.53271196,111830.0,111820.0,0.40313888]
[1756953702720,0.36284901,111830.0,111820.0,0.40313888]
[1756953703582,0.35386908,111830.0,111820.0,0.40313888]
[1756953705061,0.35386908,111830.0,111820.0,0.40520888]
[1756953705254,0.35073908,111830.0,111820.0,0.40520888]